bitfinex/quotes_ETHUSD_20250705
["timestamp","ask_amount","ask_price","bid_price","bid_amount"]
[1751705118471,0.002,2518.0,2517.9,24.747671]
[1751705119997,0.002,2518.0,2517.9,25.297671]
[1751705124491,0.002,2518.0,2517.9,30.033671]
[1751705126736,0.002,2518.0,2517.9,21.999671]
[1751705127034,0.002,2518.0,2517.9,30.031671]
[1751705127503,0.002,2518.0,2517.9,21.999671]
[1751705127704,0.002,2518.0,2517.9,30.031671]
[1751705129656,0.002,2518.0,2517.9,21.999671]
[1751705129942,0.002,2518.0,2517.9,30.029671]
[1751705135410,0.002,2518.0,2517.9,21.999671]
[1751705135615,0.002,2518.0,2517.9,30.028671]
[1751705136004,0.002,2518.0,2517.9,21.999671]
[1751705136407,0.002,2518.0,2517.9,11.449671]
[1751705136708,0.002,2518.0,2517.9,16.9369636]
[1751705137425,0.002,2518.0,2517.9,4.1699636]
[1751705137738,0.002,2518.0,2517.9,0.1984]
[1751705138044,0.8288,2518.0,2517.9,8.2264]
[1751705138407,0.8288,2518.0,2517.9,0.1984]
[1751705138645,1.19516256,2518.0,2517.9,8.2274]
[1751705138844,2.10913065,2518.0,2517.9,0.1984]
[1751705139014,2.10913065,2518.0,2517.9,8.029]
[1751705139337,2.1087557,2518.0,2517.4,8.71228799]
[1751705139543,5.71419956,2518.0,2517.5,12.00110528]
[1751705139741,0.36598428,2517.9,2517.6,3.97198899]
[1751705139945,0.36598428,2517.9,2517.7,8.029]
[1751705140132,0.36598428,2517.9,2517.8,8.029]
[1751705140444,5.71420378,2518.0,2517.8,8.029]
[1751705140753,1.74276809,2518.0,2517.8,8.029]
[1751705141350,0.8288,2518.0,2517.9,8.029]
[1751705141516,5.1659625,2518.0,2517.9,8.029]
[1751705143812,5.1659625,2518.0,2517.5,3.97211419]
[1751705144143,4.80020587,2518.0,2517.5,3.97211419]
[1751705144441,4.80020587,2518.0,2517.6,8.027]
[1751705145243,4.80020587,2518.0,2517.5,3.97211419]
[1751705145444,4.80020587,2518.0,2517.6,8.027]
[1751705146044,4.80020587,2518.0,2517.5,3.97211419]
[1751705146342,3.97158169,2517.9,2517.6,8.027]
[1751705146544,3.97158169,2517.9,2517.7,8.026]
[1751705149151,3.97158169,2517.9,2517.5,3.97219025]
[1751705149354,3.97158169,2517.9,2517.6,8.026]
[1751705149951,4.80027716,2518.0,2517.6,8.026]
[1751705150762,3.97156803,2517.9,2517.6,8.026]
[1751705151260,3.97156803,2517.9,2517.7,8.026]
[1751705151590,3.97172134,2517.8,2517.7,8.026]
[1751705152550,3.97165346,2517.9,2517.7,8.026]
[1751705155367,4.8003014,2518.0,2517.7,8.026]
[1751705156250,3.97157117,2517.9,2517.7,8.026]
[1751705160388,4.80028225,2518.0,2517.7,8.026]
[1751705160678,0.36913226,2517.9,2517.7,8.026]
[1751705162358,4.80028225,2518.0,2517.7,8.026]
[1751705162561,0.36928655,2517.9,2517.7,8.026]
[1751705163086,4.34086998,2517.9,2517.7,8.026]
[1751705163292,3.97158343,2517.9,2517.7,8.026]
[1751705163886,3.97158343,2517.9,2517.5,3.97211278]
[1751705164091,3.97158343,2517.9,2517.6,8.026]
[1751705164316,2.83216883,2517.9,2517.2,0.7962]
[1751705164461,4.76087631,2517.5,2517.0,4.76910436]
[1751705164661,0.7886,2517.5,2517.1,3.97281254]
[1751705164861,0.7886,2517.5,2516.9,8.75669914]
[1751705164862,3.97244294,2517.4,2516.9,4.01662848]
[1751705165087,3.97244294,2517.4,2517.0,8.026]
[1751705165275,0.36961973,2517.3,2517.0,8.026]
[1751705165487,0.36961973,2517.3,2517.0,13.28285186]
[1751705166583,0.36961973,2517.3,2517.0,9.30988285]
[1751705166769,0.36961973,2517.3,2517.0,13.28285518]
[1751705167097,0.36961973,2517.3,2517.0,9.30988285]
[1751705167395,0.36961973,2517.3,2517.0,13.28286397]
[1751705168605,0.7886,2517.5,2517.2,3.97260066]
[1751705168912,4.72375169,2517.9,2517.4,3.97230953]
[1751705169075,2.32247907,2517.8,2517.5,3.97218951]
[1751705169271,0.36947907,2517.7,2517.5,3.97218951]
[1751705169600,12.7051,2517.9,2517.5,3.97218951]
[1751705169601,0.36947907,2517.6,2517.5,3.97218951]
[1751705170173,0.36947907,2517.8,2517.5,3.97218951]
[1751705170470,0.36947907,2517.7,2517.5,3.97218951]
[1751705170665,0.36947907,2517.6,2517.5,3.97218951]
[1751705170972,0.36947907,2517.8,2517.4,4.7803885]
[1751705171172,0.36947907,2517.7,2517.3,8.027]
[1751705171383,0.36947907,2517.6,2517.3,11.99943044]
[1751705171672,0.36947907,2517.5,2517.3,11.99943044]
[1751705171873,3.97173508,2517.8,2517.3,11.99943044]
[1751705172071,0.3694521,2517.7,2517.3,11.99943044]
[1751705172284,0.3694521,2517.6,2517.3,11.99943044]
[1751705172489,0.3694521,2517.5,2517.2,4.77619339]
[1751705172713,3.97189417,2517.7,2517.4,8.027]
[1751705172974,0.36943601,2517.6,2517.4,8.027]
[1751705174199,0.36943601,2517.6,2517.5,3.97219463]
[1751705174383,1.953,2517.9,2517.4,11.99924405]
[1751705174584,0.36944687,2517.8,2517.6,3.97203405]
[1751705175200,0.36944687,2517.8,2517.4,11.99924405]
[1751705175201,0.36944687,2517.8,2517.5,3.97211745]
[1751705175394,0.36944687,2517.8,2517.5,5.6503136]
[1751705175704,0.36944687,2517.8,2517.6,3.97201208]
[1751705175888,0.36944687,2517.8,2517.5,5.65031554]
[1751705177304,4.34119275,2517.8,2517.4,8.027]
[1751705177504,0.36944687,2517.7,2517.3,4.78305485]
[1751705177710,0.36944687,2517.7,2517.5,8.027]
[1751705178375,0.36944687,2517.7,2517.3,4.78305485]
[1751705178579,0.36944687,2517.7,2517.4,8.027]
[1751705178580,5.14685086,2517.7,2517.4,8.027]
[1751705178808,4.77740399,2517.7,2517.4,8.027]
[1751705179003,0.36949654,2517.6,2517.4,8.027]
[1751705180914,4.34155073,2517.6,2517.4,8.027]
[1751705181222,3.97205419,2517.6,2517.4,8.027]
[1751705182623,4.77745264,2517.7,2517.4,8.027]
[1751705182807,0.36953892,2517.6,2517.4,8.027]
[1751705183122,4.3416738,2517.6,2517.4,8.027]
[1751705183281,3.97213488,2517.6,2517.4,8.027]
[1751705184080,4.77745998,2517.7,2517.4,8.027]
[1751705184280,0.36955564,2517.6,2517.4,8.027]
[1751705185823,0.36955564,2517.5,2517.4,8.027]
[1751705186311,0.8055,2517.4,2517.3,8.027]
[1751705186487,1.17505564,2517.4,2517.3,8.027]
[1751705186689,0.36955564,2517.4,2517.3,8.027]
[1751705187340,0.36955564,2517.4,2517.1,3.97271987]
[1751705187341,0.36955564,2517.4,2517.0,1.28388285]
[1751705187541,0.7896,2517.6,2517.0,1.28388285]
[1751705187823,3.9725843,2517.3,2517.1,8.027]
[1751705189598,3.97242864,2517.4,2517.1,8.027]
[1751705189797,0.36961585,2517.3,2517.1,8.027]
[1751705190794,4.34212906,2517.3,2517.1,8.027]
[1751705191003,3.97251321,2517.3,2517.1,8.027]
[1751705191202,0.36956105,2517.2,2516.9,0.0435872]
[1751705191525,0.36956105,2517.2,2517.0,0.03972983]
[1751705194027,0.36956105,2517.1,2517.0,0.03972983]
[1751705194320,0.36956105,2517.1,2516.9,9.02703693]
[1751705194524,3.97252668,2517.3,2516.9,9.02703693]
[1751705194727,0.36961957,2517.2,2516.9,9.02703693]
[1751705195528,0.36961957,2517.2,2516.9,13.00015841]
[1751705196024,0.36961957,2517.1,2516.9,13.00015841]
[1751705196229,3.97252909,2517.3,2516.9,13.00015841]
[1751705196425,0.36956933,2517.2,2516.9,13.00015841]
[1751705196650,0.36956933,2517.2,2517.0,8.027]
[1751705197324,4.34224445,2517.2,2517.0,8.027]
[1751705197530,0.36956933,2517.1,2517.0,8.027]
[1751705198135,4.34247871,2517.1,2516.9,0.0435872]
[1751705198429,0.36949975,2517.0,2516.9,8.0705872]
[1751705199397,0.36949975,2517.1,2516.9,8.0705872]
[1751705199602,0.36949975,2517.0,2516.9,8.0705872]
[1751705200232,6.69020378,2517.3,2516.9,8.0705872]
[1751705200453,0.36940752,2517.2,2516.9,8.0705872]
[1751705200761,0.36940764,2517.1,2516.9,8.0705872]
[1751705200958,7.75646399,2517.3,2516.9,8.0705872]
[1751705201257,0.36940771,2517.2,2517.0,3.97298323]
[1751705201463,0.36940771,2517.1,2516.9,12.80404534]
[1751705201632,1.953,2517.3,2516.9,12.80404534]
[1751705201828,0.36937539,2517.2,2516.9,12.80404534]
[1751705202251,0.36937539,2517.2,2517.0,3.97297754]
[1751705202532,0.36937539,2517.1,2517.0,3.97297754]
[1751705203861,0.36937539,2517.3,2517.0,3.97297754]
[1751705204172,0.36937539,2517.2,2517.0,3.97297754]
[1751705204464,0.36937539,2517.1,2517.0,3.97297754]
[1751705204632,0.36937539,2517.1,2517.0,11.99997754]
[1751705204831,0.36937539,2517.3,2517.0,11.99997754]
[1751705205032,0.36937539,2517.2,2517.0,11.99997754]
[1751705205331,0.36937539,2517.1,2517.0,11.99997754]
[1751705206456,0.36937539,2517.3,2517.0,11.99997754]
[1751705206758,1.953,2517.4,2517.0,11.99997754]
[1751705206963,0.3693576,2517.3,2517.0,11.99997754]
[1751705207164,0.3693576,2517.2,2517.0,11.99997754]
[1751705207458,0.3693576,2517.1,2517.0,11.99997754]
[1751705207860,0.3693576,2517.3,2517.0,11.99997754]
[1751705208054,0.3693576,2517.2,2517.0,11.99997754]
[1751705208354,0.3693576,2517.1,2517.0,11.99997754]
[1751705208752,0.3693576,2517.3,2517.0,11.99997754]
[1751705208957,0.3693576,2517.2,2517.0,11.99997754]
[1751705209140,0.3693576,2517.1,2517.0,11.99997754]
[1751705209339,0.3693576,2517.3,2517.0,11.99997754]
[1751705209566,0.3693576,2517.2,2517.0,11.99997754]
[1751705209755,0.3693576,2517.1,2517.0,11.99997754]
[1751705210260,0.3693576,2517.3,2517.0,11.99997754]
[1751705210461,0.3693576,2517.2,2517.0,11.99997754]
[1751705210762,0.3693576,2517.1,2517.0,11.99997754]
[1751705211161,0.3693576,2517.3,2517.0,11.99997754]
[1751705211363,0.3693576,2517.2,2517.0,11.99997754]
[1751705211563,0.3693576,2517.1,2517.0,11.99997754]
[1751705212866,0.36962515,2517.1,2517.0,11.99997754]
[1751705217473,0.36962515,2517.1,2517.0,13.67768664]
[1751705220980,1.953,2517.4,2517.1,3.97277761]
[1751705221178,0.37009001,2517.3,2517.2,11.99960271]
[1751705225788,0.37009001,2517.3,2517.2,8.027]
[1751705232499,0.37009001,2517.3,2516.9,0.8039872]
[1751705232703,0.37009001,2517.2,2517.0,8.026]
[1751705232905,0.37009001,2517.1,2517.0,8.026]
[1751705234012,0.37009001,2517.1,2517.0,11.99898371]
[1751705235217,0.37009001,2517.1,2517.0,8.026]
[1751705235371,0.37026255,2517.1,2517.0,8.026]
[1751705239813,0.37026255,2517.1,2517.0,3.97298371]
[1751705239975,0.37026255,2517.1,2517.0,11.99898371]
[1751705240483,0.37026255,2517.1,2517.0,8.026]
[1751705241404,0.37026255,2517.1,2516.9,4.0166401]
[1751705241704,0.7853,2517.3,2517.0,8.026]
[1751705241905,0.37025708,2517.2,2517.0,8.026]
[1751705242108,0.37025708,2517.1,2517.0,8.026]
[1751705242906,0.37025708,2517.1,2517.0,11.99898371]
[1751705243312,0.37025708,2517.1,2517.0,8.026]
[1751705246777,0.37025708,2517.1,2516.9,4.01664204]
[1751705247115,0.7853,2517.3,2517.0,8.025]
[1751705247293,0.37025798,2517.2,2517.0,8.025]
[1751705247492,0.37025798,2517.1,2517.0,8.025]
[1751705247811,0.37025798,2517.1,2517.0,11.99798371]
[1751705248210,0.37025798,2517.1,2517.0,8.025]
[1751705249716,0.37025798,2517.1,2517.0,11.99798371]
[1751705250216,0.37024515,2517.1,2517.0,11.99798371]
[1751705250416,0.37024515,2517.1,2517.0,8.025]
[1751705251118,0.37024515,2517.1,2517.0,11.99798371]
[1751705252118,0.37024515,2517.1,2517.0,8.025]
[1751705255718,0.37024515,2517.1,2516.9,0.0435872]
[1751705255921,0.7797,2517.2,2517.0,8.024]
[1751705256102,0.37020574,2517.1,2517.0,8.024]
[1751705256496,0.37020574,2517.1,2516.9,0.0435872]
[1751705256686,0.37020574,2517.0,2516.9,8.0675872]
[1751705257112,4.34318945,2517.0,2516.9,0.0435872]
[1751705257307,6.03245197,2517.0,2516.9,0.0435872]
[1751705259923,2.05946826,2517.0,2516.9,0.0435872]
[1751705260230,0.37020574,2517.0,2516.9,0.0435872]
[1751705260558,0.37020574,2517.0,2516.8,8.0185872]
[1751705260715,0.37020574,2516.9,2516.8,8.0185872]
[1751705262235,1.14990574,2516.9,2516.8,8.024]
[1751705262614,5.12307182,2516.9,2516.5,0.7913]
[1751705262822,3.97377309,2516.5,2516.4,0.0535872]
[1751705263135,6.29497883,2516.5,2516.4,0.0535872]
[1751705263731,2.32120574,2516.5,2516.4,0.0535872]
[1751705264621,1.951,2516.5,2516.4,0.0535872]
[1751705264822,2.32012418,2516.5,2516.4,0.0535872]
[1751705265026,0.36912418,2516.5,2516.4,0.0535872]
[1751705266321,1.07645848,2516.5,2516.4,0.0535872]
[1751705266729,1.07645848,2516.5,2516.4,4.02751821]
[1751705266730,0.36912418,2516.5,2516.4,4.02751821]
[1751705266927,2.32012418,2516.6,2516.4,4.02751821]
[1751705267140,0.36912418,2516.5,2516.4,4.02751821]
[1751705269141,1.952,2516.8,2516.5,3.97369494]
[1751705269353,0.3690256,2516.7,2516.5,11.99869494]
[1751705269637,0.3690256,2516.7,2516.6,3.97361519]
[1751705270013,0.3690256,2516.7,2516.5,11.99869259]
[1751705270514,1.952,2516.8,2516.5,11.99869259]
[1751705270714,0.369001,2516.7,2516.5,11.99869259]
[1751705272234,0.369001,2516.7,2516.6,8.025]
[1751705272845,0.369001,2516.7,2516.6,11.99861519]
[1751705273415,0.369001,2516.7,2516.6,8.025]
[1751705273611,0.36902694,2516.7,2516.6,11.99861519]
[1751705273823,0.36902694,2516.7,2516.6,12.80611519]
[1751705274331,0.36902694,2516.7,2516.6,8.8325]
[1751705275028,0.36902694,2516.7,2516.6,8.025]
[1751705276347,0.36928632,2516.7,2516.6,8.025]
[1751705277645,0.36928632,2516.7,2516.5,3.97376427]
[1751705277841,0.36928632,2516.6,2516.4,4.83492681]
[1751705278050,0.36928632,2516.5,2516.4,4.83492681]
[1751705278228,0.36928632,2516.5,2516.4,4.02742681]
[1751705278721,0.36928632,2516.5,2516.4,12.05242681]
[1751705278922,11.952,2516.8,2516.5,3.9737694]
[1751705279123,0.36936511,2516.7,2516.5,3.9737694]
[1751705279321,0.36936511,2516.6,2516.5,3.9737694]
[1751705280853,0.36936511,2516.6,2516.5,4.7812694]
[1751705281451,0.36936511,2516.6,2516.5,0.8075]
[1751705282255,0.36950088,2516.6,2516.5,0.8075]
[1751705282652,0.36950088,2516.6,2516.5,4.78127309]
[1751705284649,0.36974609,2516.6,2516.5,4.78127309]
[1751705285359,0.36974609,2516.6,2516.4,8.0785872]
[1751705285536,0.36974609,2516.5,2516.4,8.0785872]
[1751705285732,0.36974609,2516.5,2516.4,0.0535872]
[1751705285940,0.36974609,2516.5,2516.4,8.0775872]
[1751705287963,0.36974609,2516.5,2516.4,0.0535872]
[1751705288153,0.36974609,2516.5,2516.4,8.0775872]
[1751705288473,0.36974609,2516.5,2516.4,0.0535872]
[1751705288666,5.92920911,2516.5,2516.4,0.0535872]
[1751705289876,1.95543602,2516.5,2516.4,0.0535872]
[1751705290228,5.55946302,2516.5,2516.4,0.0535872]
[1751705290599,5.92949176,2516.5,2516.4,0.0535872]
[1751705290737,1.95571867,2516.5,2516.4,0.0535872]
[1751705293538,0.37002874,2516.5,2516.4,0.0535872]
[1751705294567,1.12402874,2516.5,2516.4,0.0535872]
[1751705295689,5.09780183,2516.5,2516.4,0.0535872]
[1751705296389,5.09776561,2516.5,2516.4,0.0535872]
[1751705299308,15.09776561,2516.5,2516.4,0.0535872]
[1751705299512,18.00490681,2516.5,2516.4,0.0535872]
[1751705300612,19.95590681,2516.5,2516.4,0.0535872]
[1751705301317,20.50590681,2516.5,2516.4,0.0535872]
[1751705302289,20.50590681,2516.5,2516.0,0.01]
[1751705302290,14.72590483,2516.1,2516.0,0.01]
[1751705302495,16.96591542,2516.1,2516.0,0.01]
[1751705303418,17.51591542,2516.1,2516.0,0.01]
[1751705303623,4.72685281,2515.5,2515.4,0.0435872]
[1751705303901,34.64884533,2515.5,2515.4,0.0435872]
[1751705304100,35.9186898,2515.5,2515.4,0.0435872]
[1751705304301,25.9166898,2515.5,2515.4,0.0435872]
[1751705304500,21.94133699,2515.5,2515.4,0.0435872]
[1751705304799,27.8676898,2515.5,2515.4,0.0435872]
[1751705305172,27.8676898,2515.5,2514.9,0.0435872]
[1751705305173,30.0,2515.4,2514.9,0.0435872]
[1751705305503,13.97614314,2515.0,2514.9,0.0435872]
[1751705306369,11.951,2515.0,2514.9,0.0435872]
[1751705306570,12.31955602,2515.0,2514.9,0.0435872]
[1751705307580,16.29569916,2515.0,2514.9,0.0435872]
[1751705308213,15.92714314,2515.0,2514.9,0.0435872]
[1751705308512,18.36070409,2515.0,2514.9,0.0435872]
[1751705309405,18.36015515,2515.0,2514.9,0.0435872]
[1751705309603,19.17605515,2515.0,2514.9,0.0435872]
[1751705310621,27.24705515,2515.0,2514.9,0.0435872]
[1751705311320,27.24705515,2515.0,2514.8,0.01]
[1751705311321,14.79220124,2514.9,2514.8,0.01]
[1751705311521,16.23414807,2514.9,2514.8,0.01]
[1751705312174,26.25814807,2514.9,2514.8,0.01]
[1751705312898,26.26514807,2514.9,2514.8,0.01]
[1751705314311,18.18614807,2514.9,2514.8,0.01]
[1751705314606,18.18536536,2514.9,2514.8,0.01]
[1751705316507,17.81859992,2514.9,2514.8,0.01]
[1751705316688,18.1853776,2514.9,2514.8,0.01]
[1751705326593,18.18562562,2514.9,2514.8,0.01]
[1751705327020,18.20562562,2514.9,2514.8,0.01]
[1751705327694,18.20577946,2514.9,2514.8,0.01]
[1751705332652,16.23377946,2514.9,2514.8,0.01]
[1751705332853,26.28377946,2514.9,2514.8,0.01]
[1751705333435,13.97693378,2514.5,2514.4,0.25586708]
[1751705333623,14.34411332,2514.5,2514.4,0.25586708]
[1751705334444,13.97693378,2514.5,2514.4,0.25586708]
[1751705334646,0.36873195,2514.5,2514.4,1.04556708]
[1751705335346,0.36873195,2514.5,2514.4,1.54992016]
[1751705336544,0.36873195,2514.5,2514.4,1.04556708]
[1751705337652,0.36873195,2514.5,2514.4,5.02265903]
[1751705337853,0.36873195,2514.5,2514.4,1.04556708]
[1751705340851,0.36873195,2514.5,2514.4,5.02265903]
[1751705342336,0.36873195,2514.5,2514.4,1.04556708]
[1751705343060,0.36873195,2514.5,2514.4,5.02265903]
[1751705344536,0.36873195,2514.5,2514.4,5.96449339]
[1751705344735,0.36873195,2514.5,2514.4,5.92472248]
[1751705345688,1.972,2514.9,2514.8,4.80685936]
[1751705345860,2.34142641,2514.9,2514.8,4.80685936]
[1751705346028,0.36942641,2514.9,2514.8,4.80685936]
[1751705346229,0.36942641,2514.9,2514.8,5.68520437]
[1751705348357,0.36904552,2515.2,2514.9,3.97624712]
[1751705348531,0.36904552,2515.1,2514.9,3.97624712]
[1751705348732,0.36904552,2515.0,2514.9,4.01601013]
[1751705348933,0.36904552,2515.0,2514.9,5.6763886]
[1751705349149,3.97511541,2515.7,2515.1,0.7733]
[1751705349352,2.34096414,2515.6,2515.1,4.74918174]
[1751705349554,0.36896414,2515.5,2515.2,3.97581056]
[1751705349756,0.36896414,2515.4,2515.2,3.97581056]
[1751705349954,0.36896414,2515.3,2515.2,3.97581056]
[1751705350230,2.34083451,2515.5,2515.3,3.97561443]
[1751705350561,0.36882332,2515.4,2515.3,3.97561443]
[1751705351461,0.36882332,2515.6,2515.3,3.97561443]
[1751705351773,2.34082332,2515.5,2515.3,3.97561443]
[1751705352061,0.36882332,2515.4,2515.3,3.97561443]
[1751705352438,0.36882332,2515.4,2515.3,5.62138693]
[1751705352832,0.36882332,2515.6,2515.3,5.62138693]
[1751705353063,0.36882332,2515.6,2515.3,4.74891443]
[1751705353364,10.0,2515.7,2515.3,4.74891443]
[1751705353662,10.0,2515.7,2515.4,3.97549595]
[1751705354666,10.0,2515.7,2515.3,4.74894739]
[1751705355464,10.0,2515.7,2515.4,3.97550857]
[1751705355667,10.0,2515.7,2515.3,4.74891448]
[1751705356944,10.0,2515.8,2515.4,3.97541651]
[1751705357267,1.972,2515.8,2515.5,3.97527251]
[1751705357664,3.97462972,2516.0,2515.4,0.8705551]
[1751705357665,1.972,2516.0,2515.7,3.97492282]
[1751705357846,1.972,2516.0,2515.7,3.97495088]
[1751705358048,1.972,2516.0,2515.7,0.8308]
[1751705358240,11.972,2516.0,2515.7,0.8308]
[1751705359158,15.94658633,2516.0,2515.7,0.8308]
[1751705359673,0.766,2515.9,2515.0,0.8308]
[1751705359838,3.97542931,2515.5,2515.0,4.80685848]
[1751705360941,3.9756834,2515.3,2515.0,0.8308]
[1751705362272,5.94760863,2515.4,2515.0,0.8308]
[1751705363571,1.972,2515.4,2515.0,4.80693417]
[1751705363773,1.972,2515.4,2515.1,0.57337757]
[1751705364273,1.972,2515.4,2515.1,4.54935522]
[1751705364474,1.972,2515.4,2515.1,0.57337757]
[1751705364769,1.972,2515.4,2515.1,4.54935983]
[1751705364972,1.972,2515.4,2515.1,0.57337757]
[1751705365272,1.972,2515.4,2515.2,0.53802474]
[1751705365574,1.972,2515.4,2515.1,0.57337757]
[1751705365747,5.94755705,2515.4,2515.1,0.57337757]
[1751705366968,5.94755705,2515.4,2515.0,0.8308]
[1751705367370,1.972,2515.4,2515.0,4.80693661]
[1751705368181,0.36881049,2515.3,2515.0,0.8308]
[1751705368476,0.36881049,2515.3,2515.0,4.8069272]
[1751705368777,0.36881049,2515.3,2515.0,4.80688259]
[1751705368976,1.972,2515.5,2515.3,0.7864]
[1751705369176,0.36890633,2515.4,2515.3,4.7620689]
[1751705369381,0.36890633,2515.5,2515.3,4.7620689]
[1751705369592,1.972,2515.6,2515.3,4.7620689]
[1751705369593,0.36890633,2515.4,2515.3,4.7620689]
[1751705369789,0.36904447,2515.4,2515.3,0.82615668]
[1751705370085,0.36904447,2515.4,2515.3,1.67681567]
[1751705370389,0.36904447,2515.4,2515.3,5.65248457]
[1751705370757,0.36904447,2515.5,2515.3,5.65248457]
[1751705370991,0.36904447,2515.4,2515.3,5.65248457]
[1751705371887,0.36912839,2515.5,2515.4,3.97551085]
[1751705372200,0.36923149,2515.5,2515.3,5.65239372]
[1751705372597,0.36923149,2515.5,2515.4,3.97551085]
[1751705372888,0.36923149,2515.5,2515.4,4.93830131]
[1751705373090,0.36923149,2515.5,2515.4,0.96279046]
[1751705373293,1.972,2515.8,2515.5,3.97534496]
[1751705373462,0.36928219,2515.7,2515.5,3.97534496]
[1751705373658,0.36928219,2515.6,2515.5,3.97534496]
[1751705373862,0.36928361,2515.6,2515.5,5.03436728]
[1751705374200,11.972,2516.1,2515.7,3.97488785]
[1751705374369,0.36940301,2516.0,2515.7,3.97488785]
[1751705374568,0.0277535,2516.2,2516.0,3.97456279]
[1751705374907,0.0277535,2516.2,2516.1,12.85270483]
[1751705375090,0.0277535,2516.2,2516.1,14.53543159]
[1751705375264,0.0277535,2516.2,2516.1,15.08543159]
[1751705375464,1e-08,2516.2,2516.1,17.00943159]
[1751705375721,1e-08,2516.2,2516.1,25.10643159]
[1751705375900,0.0436113,2516.7,2516.6,3.97361519]
[1751705376094,0.0436113,2516.7,2516.6,13.71038786]
[1751705376404,0.0436113,2516.7,2516.6,13.67065171]
[1751705378921,0.0456113,2516.7,2516.6,13.67065171]
[1751705381192,0.0456113,2516.7,2516.6,6.12065171]
[1751705381393,0.0456113,2516.7,2516.6,14.21365171]
[1751705382699,0.0456113,2516.7,2516.6,14.21165171]
[1751705384583,0.0456113,2516.7,2516.6,13.65965171]
[1751705385897,0.0456113,2516.7,2516.6,13.65665171]
[1751705386408,0.0456113,2516.7,2516.1,1.68272676]
[1751705386714,4.01907633,2516.7,2516.2,12.06312185]
[1751705388002,0.0456113,2516.7,2516.3,3.97405493]
[1751705388510,0.0456113,2516.7,2516.4,8.089]
[1751705389903,0.0456113,2516.7,2516.4,12.06291234]
[1751705390722,0.0456113,2516.7,2516.5,3.97376557]
[1751705390888,0.0456113,2516.7,2516.6,8.085]
[1751705397419,0.0456113,2516.7,2516.5,3.97375911]
[1751705397718,0.0456113,2516.7,2516.6,8.079]
[1751705398990,0.0456113,2516.7,2516.6,12.05261519]
[1751705399325,0.0456113,2516.7,2516.6,8.079]
[1751705401107,0.0456113,2516.7,2516.6,8.08]
[1751705401726,0.0456113,2516.7,2516.6,8.078]
[1751705402506,0.0456113,2516.7,2516.6,12.05161519]
[1751705403027,0.0456113,2516.7,2516.6,12.05061519]
[1751705405841,0.0456113,2516.7,2516.6,8.077]
[1751705406338,0.0456113,2516.7,2516.6,12.05061519]
[1751705407117,0.0456113,2516.7,2516.6,12.04861519]
[1751705408751,0.0456113,2516.7,2516.6,13.72917638]
[1751705408951,0.0456113,2516.7,2516.6,14.51247638]
[1751705413046,0.0456113,2516.7,2516.6,15.06247638]
[1751705417064,0.0456113,2516.7,2516.6,6.98747638]
[1751705417291,0.0456113,2516.7,2516.6,15.05647638]
[1751705418971,0.0456113,2516.7,2516.6,15.05547638]
[1751705419528,0.0456113,2516.7,2516.6,6.98747638]
[1751705419778,0.0456113,2516.7,2516.6,15.05447638]
[1751705423234,0.0456113,2516.7,2516.6,19.79447638]
[1751705426271,0.0456113,2516.7,2516.6,11.72747638]
[1751705426460,0.0456113,2516.7,2516.6,19.79447638]
[1751705427468,0.0456113,2516.7,2516.6,19.79247638]
[1751705427683,0.0456113,2516.7,2516.6,19.79147638]
[1751705433471,0.0456113,2516.7,2516.6,11.72747638]
[1751705433672,0.0456113,2516.7,2516.6,19.78747638]
[1751705433872,0.0456113,2516.7,2516.6,11.72747638]
[1751705434045,0.0456113,2516.7,2516.6,19.78747638]
[1751705436272,0.0456113,2516.7,2516.6,11.72747638]
[1751705436741,0.0456113,2516.7,2516.6,19.78547638]
[1751705437450,0.0456113,2516.7,2516.6,11.17747638]
[1751705437651,0.0456113,2516.7,2516.6,19.23547638]
[1751705438169,0.0456113,2516.7,2516.6,18.45117638]
[1751705439678,0.0456113,2516.7,2516.6,18.45017638]
[1751705440980,0.0456113,2516.7,2516.6,13.71017638]
[1751705444690,0.0456113,2516.7,2516.6,5.65417638]
[1751705444897,0.0456113,2516.7,2516.6,8.054]
[1751705445070,0.8434113,2516.7,2516.3,3.97398084]
[1751705445275,4.81687781,2516.7,2516.4,8.055]
[1751705445800,0.34793616,2516.6,2516.4,8.055]
[1751705446398,4.81687781,2516.7,2516.4,8.055]
[1751705447473,3.97369778,2516.6,2516.1,3.97530374]
[1751705447680,3.97369778,2516.6,2516.2,8.054]
[1751705447885,3.97369778,2516.6,2516.3,8.053]
[1751705448090,4.81695513,2516.7,2516.3,8.053]
[1751705448268,4.81695513,2516.7,2516.2,3.97423847]
[1751705448467,3.97368463,2516.6,2516.3,8.053]
[1751705448667,4.81694348,2516.7,2516.3,8.053]
[1751705451096,0.8434113,2516.7,2516.3,3.97400067]
[1751705451269,0.8434113,2516.7,2516.4,12.02588974]
[1751705451592,0.8434113,2516.7,2516.4,3.97388974]
[1751705451787,0.8434113,2516.7,2516.5,8.051]
[1751705454975,15.2986087,2516.7,2516.2,3.97417064]
[1751705455172,0.35802033,2516.6,2516.3,8.05]
[1751705455572,0.35802033,2516.6,2516.3,12.02407917]
[1751705456309,1.32508357,2516.7,2516.3,12.02407917]
[1751705456476,0.35794369,2516.6,2516.3,12.02407917]
[1751705456804,0.35794369,2516.6,2516.4,8.049]
[1751705460783,0.35794369,2516.6,2516.4,12.02291687]
[1751705460985,0.35794369,2516.6,2516.5,3.97377309]
[1751705461311,0.35794369,2516.6,2516.5,5.57345481]
[1751705461496,0.0456113,2516.7,2516.6,3.97361519]
[1751705461700,0.0456113,2516.7,2516.6,12.02161519]
[1751705462812,0.0456113,2516.7,2516.6,12.57161519]
[1751705463018,0.0456113,2516.7,2516.6,13.35451519]
[1751705463193,0.0456113,2516.7,2516.6,15.64470305]
[1751705467015,0.0456113,2516.7,2516.6,15.64370305]
[1751705469986,0.0456113,2516.7,2516.6,20.38370305]
[1751705475837,0.0436113,2517.2,2517.1,4.79902587]
[1751705476118,0.0436113,2517.2,2517.1,13.42975412]
[1751705476424,0.0436113,2517.2,2517.1,15.60429646]
[1751705476801,0.0436113,2517.2,2517.1,14.22809646]
[1751705477004,0.8215113,2517.2,2517.1,12.01382587]
[1751705478831,0.0436113,2517.2,2517.1,12.01382587]
[1751705480033,0.0436113,2517.2,2517.1,3.97282587]
[1751705480329,0.0436113,2517.2,2517.1,12.01282587]
[1751705480843,0.0436113,2517.2,2517.1,8.04]
[1751705481332,0.0436113,2517.2,2517.1,12.01282587]
[1751705484625,0.0436113,2517.2,2517.1,8.04]